bitfinex/quotes_ETHUSD_20240607
["timestamp","ask_amount","ask_price","bid_price","bid_amount"]
[1717799811159,0.12106821,3690.2,3689.9,2.7101]
[1717799811468,0.721,3690.3,3689.9,2.7101]
[1717799811662,0.12105068,3690.1,3689.9,2.7101]
[1717799811959,0.721,3690.3,3689.9,2.7101]
[1717799812330,0.12106821,3690.2,3689.9,2.7101]
[1717799812879,0.12105068,3690.1,3689.9,2.7101]
[1717799813236,0.721,3690.3,3689.9,2.7101]
[1717799813737,0.12106821,3690.2,3689.9,2.7101]
[1717799814131,0.721,3690.3,3689.9,2.7101]
[1717799814635,2.92589291,3690.5,3690.4,2.70973]
[1717799814636,0.58599291,3690.5,3690.4,2.70973]
[1717799815062,0.58599291,3690.5,3690.4,3.25973]
[1717799815254,7.43,3690.6,3690.4,3.25973]
[1717799815455,7.43,3690.6,3690.5,0.55]
[1717799815680,8.01591933,3690.6,3690.5,0.55]
[1717799819250,0.58591933,3690.6,3690.5,0.55]
[1717799819654,0.721,3690.7,3690.5,0.55]
[1717799822146,0.10891955,3690.6,3690.5,0.55]
[1717799822779,1.30695351,3690.9,3690.5,0.55]
[1717799823051,1.30695351,3690.9,3690.6,2.70957]
[1717799823250,0.1089546,3690.8,3690.6,2.70957]
[1717799841468,0.5859261,3690.9,3690.6,2.70957]
[1717799841809,0.10901098,3690.8,3690.6,2.70957]
[1717799846315,0.721,3691.1,3690.6,2.70957]
[1717799846480,0.10897405,3690.7,3690.6,2.70957]
[1717799846983,1.3069237,3691.1,3690.6,2.70957]
[1717799847188,0.10897405,3690.7,3690.6,2.70957]
[1717799847397,1.3069237,3691.1,3690.6,2.70957]
[1717799847627,0.10897405,3690.7,3690.6,2.70957]
[1717799847776,1.3069237,3691.1,3690.6,2.70957]
[1717799847976,0.10897405,3690.7,3690.6,2.70957]
[1717799848500,1.3069237,3691.1,3690.6,2.70957]
[1717799848709,0.10897405,3690.7,3690.6,2.70957]
[1717799848890,1.3069237,3691.1,3690.6,2.70957]
[1717799849189,0.10902662,3691.0,3690.6,2.70957]
[1717799854145,0.721,3690.9,3690.6,2.70957]
[1717799854509,0.721,3690.7,3690.6,2.70957]
[1717799855008,0.82998131,3690.7,3690.6,2.70957]
[1717799855459,0.82998131,3690.7,3690.2,2.70983]
[1717799855758,0.721,3690.4,3690.2,2.70983]
[1717799856156,0.1089185,3690.3,3690.2,2.70983]
[1717799857020,0.1089185,3690.3,3689.8,2.71016]
[1717799857021,2.3572,3690.2,3689.8,2.71016]
[1717799857222,0.721,3689.9,3689.8,2.71016]
[1717799857537,0.82980471,3689.9,3689.8,2.71016]
[1717799858418,0.10880471,3689.9,3689.8,2.71016]
[1717799858614,0.721,3689.9,3689.8,2.71016]
[1717799858814,0.82974008,3689.9,3689.8,2.71016]
[1717799860837,0.10874008,3689.9,3689.8,2.71016]
[1717799861145,0.721,3689.9,3689.8,2.71016]
[1717799861350,0.8297494,3689.9,3689.8,2.71016]
[1717799862353,0.1087494,3689.9,3689.8,2.71016]
[1717799862649,0.721,3689.9,3689.3,2.341]
[1717799862850,0.10876546,3689.8,3689.4,3.26044]
[1717799876558,0.721,3690.0,3689.4,3.26044]
[1717799877064,0.1088425,3689.9,3689.4,3.26044]
[1717799879899,2.5643425,3689.9,3689.4,3.26044]
[1717799884598,2.89287675,3689.9,3689.4,3.26044]
[1717799885602,0.721,3689.8,3689.4,2.71044]
[1717799885802,0.721,3689.6,3689.4,2.71044]
[1717799886340,0.10551661,3689.5,3689.4,2.71044]
[1717799887534,0.10551661,3689.5,3688.5,0.721]
[1717799887535,2.4555,3689.4,3688.9,2.71082]
[1717799887832,0.721,3689.3,3688.9,2.71082]
[1717799888039,0.82643057,3689.3,3688.9,2.71082]
[1717799897926,0.10543057,3689.3,3688.9,2.71082]
[1717799898260,0.721,3689.5,3688.9,2.71082]
[1717799898457,0.10451741,3689.2,3688.9,2.71082]
[1717799898766,0.1044934,3689.1,3688.9,2.71082]
[1717799898933,0.721,3689.5,3689.1,2.71065]
[1717799899121,0.10453145,3689.4,3689.1,2.71065]
[1717799905884,0.10453145,3689.4,3689.0,0.55]
[1717799905885,0.10453145,3689.4,3689.3,2.71054]
[1717799906380,0.10457148,3689.4,3689.3,3.26054]
[1717799906583,1.3071558,3689.7,3689.3,3.26054]
[1717799906756,0.10457148,3689.4,3689.3,3.26054]
[1717799906959,1.3071558,3689.7,3689.3,3.26054]
[1717799907170,0.10457148,3689.4,3689.3,3.26054]
[1717799907371,1.3071558,3689.7,3689.3,3.26054]
[1717799907582,0.10457148,3689.4,3689.3,3.26054]
[1717799907787,1.3071558,3689.7,3689.3,3.26054]
[1717799907942,0.10457148,3689.4,3689.3,3.26054]
[1717799908138,1.3071558,3689.7,3689.3,3.26054]
[1717799908384,0.10462355,3689.6,3689.3,3.26054]
[1717799909262,2.3729,3689.4,3689.3,3.26054]
[1717799909763,2.47749091,3689.4,3689.3,3.26054]
[1717799914492,3.19849091,3689.4,3689.3,3.26054]
[1717799921408,3.19849091,3689.4,3688.8,2.71085]
[1717799922282,0.10459091,3689.4,3688.8,2.71085]
[1717799922482,0.82559091,3689.4,3688.8,2.71085]
[1717799922684,0.10448329,3689.3,3688.8,2.71085]
[1717799927800,0.721,3689.4,3688.8,2.71085]
[1717799928006,0.10103145,3689.2,3688.8,2.71085]
[1717799928221,2.3729,3689.1,3688.8,2.71085]
[1717799928404,2.47391392,3689.1,3688.8,2.71085]
[1717799929826,0.10101392,3689.1,3688.8,2.71085]
[1717799931321,0.721,3689.1,3688.8,2.71085]
[1717799931514,0.10092224,3689.0,3688.8,2.71085]
[1717799937597,2.3405,3688.9,3688.8,2.71085]
[1717799937796,2.3405,3688.9,3688.8,3.26085]
[1717799938014,2.44141117,3688.9,3688.8,3.26085]
[1717799939394,0.10091117,3688.9,3688.8,3.26085]
[1717799939821,3.0615,3689.1,3688.8,3.26085]
[1717799940045,0.10091845,3688.9,3688.8,3.26085]
[1717799940196,3.0615,3689.1,3688.8,3.26085]
[1717799940397,0.10091147,3688.9,3688.8,3.26085]
[1717799940622,3.0615,3689.1,3688.8,3.26085]
[1717799940808,0.10091147,3688.9,3688.8,3.26085]
[1717799941009,3.0615,3689.1,3688.8,3.26085]
[1717799941220,0.10091147,3688.9,3688.8,3.26085]
[1717799941423,3.0615,3689.1,3688.8,3.26085]
[1717799941636,0.10091845,3688.9,3688.8,3.26085]
[1717799941835,3.0615,3689.1,3688.8,3.26085]
[1717799942330,0.10093599,3689.0,3688.4,2.71119]
[1717799942531,0.721,3688.8,3688.4,2.71119]
[1717799942733,0.10087689,3688.7,3688.4,2.71119]
[1717799942898,0.721,3688.8,3688.4,2.71119]
[1717799943094,0.10087042,3688.7,3688.4,2.71119]
[1717799943323,0.721,3688.8,3688.4,2.71119]
[1717799943522,0.10090977,3688.7,3688.4,2.71119]
[1717799943838,0.721,3688.8,3688.4,2.71119]
[1717799944038,0.1008987,3688.6,3688.4,2.71119]
[1717799944246,0.721,3688.8,3688.4,2.71119]
[1717799944756,0.10090977,3688.7,3688.4,2.71119]
[1717799944923,0.721,3688.8,3688.4,2.71119]
[1717799945123,0.10090977,3688.7,3688.4,2.71119]
[1717799945458,0.721,3688.8,3688.4,2.71119]
[1717799945598,0.10089223,3688.6,3688.4,2.71119]
[1717799945801,0.721,3688.8,3688.4,2.71119]
[1717799946030,0.10087469,3688.5,3688.4,2.71119]
[1717799946244,0.721,3688.8,3688.4,2.71119]
[1717799946425,0.10087469,3688.5,3688.4,2.71119]
[1717799946742,0.721,3688.8,3688.4,2.71119]
[1717799946938,0.10087469,3688.5,3688.4,2.71119]
[1717799947124,0.721,3688.8,3688.4,2.71119]
[1717799947333,0.10087469,3688.5,3688.4,2.71119]
[1717799947843,0.721,3688.8,3688.4,2.71119]
[1717799948003,0.10087469,3688.5,3688.4,2.71119]
[1717799948200,0.721,3688.8,3688.4,2.71119]
[1717799948405,0.10087469,3688.5,3688.4,2.71119]
[1717799948832,0.721,3688.8,3688.4,2.71119]
[1717799949036,0.10087469,3688.5,3688.4,2.71119]
[1717799949212,0.721,3688.8,3688.4,2.71119]
[1717799949414,0.10087469,3688.5,3688.4,2.71119]
[1717799949618,0.721,3688.8,3688.4,2.71119]
[1717799950446,0.10027537,3688.7,3688.4,2.71119]
[1717799950650,0.721,3688.8,3688.4,2.71119]
[1717799950943,0.10025783,3688.6,3688.4,2.71119]
[1717799951156,0.721,3688.8,3688.4,2.71119]
[1717799951356,0.10024029,3688.5,3688.4,2.71119]
[1717799952046,0.721,3688.8,3688.4,2.71119]
[1717799952546,0.10027537,3688.7,3688.4,2.71119]
[1717799953045,0.1002117,3688.6,3688.4,2.71119]
[1717799953552,0.721,3689.0,3688.6,2.71101]
[1717799957347,0.10028374,3688.9,3688.6,2.71101]
[1717799963950,0.721,3689.0,3688.6,2.71101]
[1717799964471,0.10015116,3688.9,3688.6,2.71101]
[1717799975667,0.10015116,3688.9,3688.8,2.7109]
[1717799975993,0.58625619,3689.1,3688.8,3.2609]
[1717799976143,0.10029993,3688.9,3688.8,2.7109]
[1717799976559,0.58625619,3689.1,3688.8,3.2609]
[1717799976754,0.10033636,3688.9,3688.8,3.2609]
[1717799976963,0.58625619,3689.1,3688.8,3.82274]
[1717799977169,0.10024467,3688.9,3688.8,3.2609]
[1717799977479,0.10033636,3688.9,3688.8,3.2609]
[1717799977711,0.58625619,3689.1,3688.8,3.2609]
[1717799977998,0.10033636,3688.9,3688.8,3.2609]
[1717799978203,0.58625619,3689.1,3688.8,3.2609]
[1717799978402,0.10033636,3688.9,3688.8,3.2609]
[1717799978611,1.30725619,3689.1,3688.8,3.2609]
[1717799978767,0.09931263,3688.9,3688.8,3.2609]
[1717799978969,0.721,3689.1,3688.8,3.2609]
[1717799979305,0.09933017,3689.0,3688.8,3.2609]
[1717799983069,0.82033017,3689.0,3688.8,3.2609]
[1717799986076,0.09933017,3689.0,3688.8,3.2609]
[1717799991018,0.58618959,3689.1,3688.8,3.2609]
[1717799991223,0.09759911,3688.9,3688.8,3.2609]
[1717799991425,0.58618959,3689.1,3688.8,3.2609]
[1717799991426,0.58617888,3689.1,3688.8,3.2609]
[1717799991582,0.09759264,3688.9,3688.8,3.2609]
[1717799991787,0.58617888,3689.1,3688.8,3.2609]
[1717799992023,0.09758616,3688.9,3688.8,3.2609]
[1717799992200,0.58617888,3689.1,3688.8,3.2609]
[1717799992828,0.0976037,3689.0,3688.8,3.2609]
[1717799994317,0.58617686,3689.1,3688.8,3.2609]
[1717799994535,0.09758616,3688.9,3688.8,3.2609]
[1717799994732,0.58617686,3689.1,3688.8,3.2609]
[1717799994912,0.09758616,3688.9,3688.8,3.2609]
[1717799995221,0.58617686,3689.1,3688.8,3.2609]
[1717799995423,0.09758616,3688.9,3688.8,3.2609]
[1717799995638,0.58617686,3689.1,3688.8,3.2609]
[1717799995785,0.09758616,3688.9,3688.8,3.2609]
[1717799995986,0.58617686,3689.1,3688.8,3.2609]
[1717799996217,0.09758616,3688.9,3688.8,3.2609]
[1717799996416,0.58617686,3689.1,3688.8,3.2609]
[1717799996901,0.09761018,3689.0,3688.8,3.2609]
[1717799998595,0.09761018,3689.0,3688.9,0.55]
[1717800007471,0.721,3689.3,3689.0,2.71074]
[1717800008468,0.721,3689.1,3689.0,2.71074]
[1717800009247,2.3785,3689.2,3689.0,2.71074]
[1717800009461,0.721,3689.1,3689.0,2.71074]
[1717800017293,0.81864097,3689.1,3689.0,2.71074]
[1717800018206,0.09764097,3689.1,3689.0,2.71074]
[1717800018699,0.09763258,3689.1,3689.0,2.71074]
[1717800018897,0.721,3689.3,3689.0,2.71074]
[1717800019101,0.09763258,3689.1,3689.0,2.71074]
[1717800019274,0.36856974,3689.3,3689.0,2.71074]
[1717800019600,0.09765012,3689.2,3689.0,2.71074]
[1717800019901,1.08956974,3689.3,3689.0,2.71074]
[1717800020206,0.09763258,3689.1,3689.0,2.71074]
[1717800020370,1.08956974,3689.3,3689.0,2.71074]
[1717800020569,0.09764191,3689.1,3689.0,2.71074]
[1717800020791,0.721,3689.3,3689.0,2.71074]
[1717800021026,0.09766132,3689.1,3689.0,2.71074]
[1717800021496,0.721,3689.3,3689.0,2.71074]
[1717800021702,0.09766132,3689.1,3689.0,2.71074]
[1717800021867,0.721,3689.3,3689.0,2.71074]
[1717800022073,0.09767886,3689.2,3689.0,2.71074]
[1717800022285,1.08956974,3689.3,3689.0,2.71074]
[1717800022485,0.09766132,3689.1,3689.0,2.71074]
[1717800022699,1.08956974,3689.3,3689.0,2.71074]
[1717800022899,0.09766132,3689.1,3689.0,2.71074]
[1717800023102,1.08956974,3689.3,3689.0,2.71074]
[1717800023307,0.09766132,3689.1,3689.0,2.71074]
[1717800023517,1.08956974,3689.3,3689.0,2.71074]
[1717800023718,0.09766132,3689.1,3689.0,2.71074]
[1717800023877,1.08956974,3689.3,3689.0,2.71074]
[1717800024078,0.09767886,3689.2,3689.0,2.71074]
[1717800024315,1.08956974,3689.3,3689.0,2.71074]
[1717800024492,0.09766132,3689.1,3689.0,2.71074]
[1717800024693,1.08956974,3689.3,3689.0,2.71074]
[1717800025004,0.09766132,3689.1,3689.0,2.71074]
[1717800025177,0.721,3689.3,3689.0,2.71074]
[1717800025377,0.09766132,3689.1,3689.0,2.71074]
[1717800025578,0.721,3689.3,3689.0,2.71074]
[1717800025810,0.09766132,3689.1,3689.0,2.71074]
[1717800025991,0.721,3689.3,3689.0,2.71074]
[1717800026195,0.09766132,3689.1,3689.0,2.71074]
[1717800026733,1.08956974,3689.3,3689.0,2.71074]
[1717800026892,0.09764674,3689.1,3689.0,2.71074]
[1717800027086,0.721,3689.3,3689.0,2.71074]
[1717800027287,0.09766428,3689.2,3689.0,2.71074]
[1717800027487,0.721,3689.3,3689.0,2.71074]
[1717800027823,0.09766428,3689.2,3689.0,2.71074]
[1717800028117,0.721,3689.3,3689.0,2.71074]
[1717800028324,0.09766743,3689.1,3689.0,2.71074]
[1717800028511,0.721,3689.3,3689.0,2.71074]
[1717800028823,0.097665,3689.1,3689.0,2.71074]
[1717800029300,0.721,3689.3,3689.0,2.71074]
[1717800029502,0.09767147,3689.1,3689.0,2.71074]
[1717800029715,0.721,3689.3,3689.0,2.71074]
[1717800029919,0.09767147,3689.1,3689.0,2.71074]
[1717800030236,0.721,3689.3,3689.0,2.71074]
[1717800030427,0.09767147,3689.1,3689.0,2.71074]
[1717800030612,0.721,3689.3,3689.0,2.71074]
[1717800030787,0.09767147,3689.1,3689.0,2.71074]
[1717800030982,0.721,3689.3,3689.0,2.71074]
[1717800031224,0.09765852,3689.1,3689.0,2.71074]
[1717800031403,0.721,3689.3,3689.0,2.71074]
[1717800031886,0.15345158,3689.2,3689.0,2.71074]
[1717800032088,0.721,3689.3,3689.0,2.71074]
[1717800032320,0.15345158,3689.2,3689.0,2.71074]
[1717800032508,0.721,3689.3,3689.0,2.71074]
[1717800032708,0.15343556,3689.1,3689.0,2.71074]
[1717800032926,0.721,3689.1,3689.0,2.71074]
[1717800033122,0.87443556,3689.1,3689.0,2.71074]
[1717800033689,0.87443556,3689.1,3688.6,2.71103]
[1717800033922,0.87443556,3689.1,3688.7,0.55]
[1717800038683,2.2769,3689.0,3688.6,2.71103]
[1717800038885,0.14813712,3688.9,3688.6,2.71103]
[1717800039589,0.721,3689.1,3688.6,2.71103]
[1717800039786,0.14808226,3688.8,3688.6,2.71103]
[1717800039984,0.721,3689.1,3688.6,2.71103]
[1717800040190,0.721,3689.2,3688.8,2.7109]
[1717800041074,0.721,3689.0,3688.8,2.7109]
[1717800043493,2.9979,3689.0,3688.4,2.71119]
[1717800043652,0.721,3688.8,3688.5,0.55]
[1717800044450,2.2769,3689.0,3688.5,0.55]
[1717800044661,0.721,3688.8,3688.5,0.55]
[1717800045398,0.721,3688.9,3688.5,0.55]
[1717800047171,0.14803058,3688.8,3688.6,2.71104]
[1717800047380,0.721,3688.9,3688.6,2.71104]
[1717800047579,0.14803392,3688.7,3688.6,2.71104]
[1717800047785,0.721,3688.9,3688.6,2.71104]
[1717800047990,0.14803392,3688.7,3688.6,2.71104]
[1717800048196,0.721,3688.9,3688.6,2.71104]
[1717800048693,0.14804996,3688.8,3688.6,2.71104]
[1717800052935,0.58620376,3689.3,3689.0,2.71074]
[1717800053246,2.7099,3690.2,3689.0,2.71074]
[1717800053247,1.30720376,3689.4,3689.0,2.71074]
[1717800053548,0.721,3689.4,3689.0,2.71074]
[1717800053697,1.30720376,3689.4,3689.0,2.71074]
[1717800053899,0.721,3689.4,3689.0,2.71074]
[1717800054207,1.30720376,3689.4,3689.0,2.71074]
[1717800054519,0.721,3689.4,3689.0,2.71074]
[1717800054942,1.30720376,3689.4,3689.0,2.71074]
[1717800055115,0.721,3689.4,3689.0,2.71074]
[1717800055447,1.30720376,3689.4,3689.0,2.71074]
[1717800055604,0.58620376,3689.5,3689.0,2.71074]
[1717800055944,0.58620376,3689.4,3689.0,2.71074]
[1717800056309,0.58620376,3689.5,3689.0,2.71074]
[1717800056634,0.721,3689.5,3689.0,2.71074]
[1717800056948,1.30720376,3689.5,3689.0,2.71074]
[1717800057141,0.721,3689.5,3689.0,2.71074]
[1717800057639,1.30720376,3689.5,3689.0,2.71074]
[1717800057841,0.721,3689.5,3689.0,2.71074]
[1717800058001,1.30720376,3689.5,3689.0,2.71074]
[1717800058202,0.721,3689.5,3689.0,2.71074]
[1717800058415,1.30720376,3689.5,3689.0,2.71074]
[1717800058935,0.721,3689.5,3689.0,2.71074]
[1717800059237,1.30719289,3689.5,3689.0,2.71074]
[1717800059454,0.721,3689.5,3689.0,2.71074]
[1717800059737,1.30719289,3689.5,3689.0,2.71074]
[1717800060236,0.721,3689.5,3689.0,2.71074]
[1717800060450,0.721,3689.1,3689.0,2.71074]
[1717800060736,0.14329432,3689.1,3689.0,2.71074]
[1717800060901,0.86429432,3689.1,3689.0,2.71074]
[1717800061502,0.14329432,3689.1,3689.0,2.71074]
[1717800061947,0.86429432,3689.1,3689.0,2.71074]
[1717800066424,0.14329432,3689.1,3689.0,2.71074]
[1717800067138,0.721,3689.3,3689.0,2.71074]
[1717800067324,0.14299916,3689.1,3689.0,2.71074]
[1717800067646,0.721,3689.3,3689.0,2.71074]
[1717800067804,0.14299916,3689.1,3689.0,2.71074]
[1717800068004,0.721,3689.3,3689.0,2.71074]
[1717800068207,0.14298211,3689.1,3689.0,2.71074]
[1717800068406,0.721,3689.4,3689.0,2.71074]
[1717800068640,0.14299064,3689.1,3689.0,2.71074]
[1717800068818,0.721,3689.4,3689.0,2.71074]
[1717800069019,0.14299064,3689.1,3689.0,2.71074]
[1717800069207,0.721,3689.4,3689.0,2.71074]
[1717800069407,0.14299064,3689.1,3689.0,2.71074]
[1717800069651,0.721,3689.3,3689.0,2.71074]
[1717800069810,0.14299064,3689.1,3689.0,2.71074]
[1717800070344,0.721,3689.3,3689.0,2.71074]
[1717800070549,0.14298337,3689.1,3689.0,2.71074]
[1717800070747,2.3933,3689.5,3689.0,2.71074]
[1717800071048,0.14298337,3689.1,3689.0,2.71074]
[1717800071254,0.721,3689.3,3689.0,2.71074]
[1717800071415,0.14298337,3689.1,3689.0,2.71074]
[1717800072052,0.721,3689.3,3689.0,2.71074]
[1717800072251,0.14298337,3689.1,3689.0,2.71074]
[1717800072450,0.721,3689.3,3689.0,2.71074]
[1717800072622,0.14298337,3689.1,3689.0,2.71074]
[1717800073124,0.721,3689.3,3689.0,2.71074]
[1717800073451,0.14298337,3689.1,3689.0,2.71074]
[1717800073638,0.721,3689.3,3689.0,2.71074]
[1717800073825,0.14298337,3689.1,3689.0,2.71074]
[1717800074028,0.721,3689.3,3689.0,2.71074]
[1717800074240,0.14298337,3689.1,3689.0,2.71074]
[1717800074725,0.721,3689.3,3689.0,2.71074]
[1717800074935,0.14300111,3689.1,3689.0,2.71074]
[1717800075128,0.721,3689.2,3689.0,2.71074]
[1717800075334,0.14300111,3689.1,3689.0,2.71074]
[1717800075514,0.721,3689.3,3689.0,2.71074]
[1717800075853,0.14301714,3689.2,3689.0,2.71074]
[1717800076252,0.721,3689.3,3689.0,2.71074]
[1717800076413,0.14300111,3689.1,3689.0,2.71074]
[1717800076614,0.721,3689.3,3689.0,2.71074]
[1717800076858,0.14300111,3689.1,3689.0,2.71074]
[1717800077069,0.721,3689.3,3689.0,2.71074]
[1717800077353,0.721,3689.4,3689.0,2.71074]
[1717800077515,0.14301714,3689.2,3689.0,2.71074]
[1717800077718,0.721,3689.4,3689.0,2.71074]
[1717800077937,0.1430283,3689.3,3689.0,2.71074]
[1717800083125,2.97939921,3689.5,3689.0,2.71074]
[1717800083331,0.86380099,3689.4,3689.0,2.71074]
[1717800090548,1.44989774,3689.4,3689.0,2.71074]
[1717800091482,1.44990381,3689.4,3689.0,2.71074]
[1717800093488,0.86380099,3689.4,3689.0,2.71074]
[1717800094183,1.44990381,3689.4,3689.0,2.71074]
[1717800095372,0.86380099,3689.4,3689.0,2.71074]
[1717800096287,0.72890381,3689.4,3689.0,2.71074]
[1717800096495,1.44990381,3689.4,3689.0,2.71074]
[1717800096780,0.86380099,3689.4,3689.0,2.71074]
[1717800097552,1.44990381,3689.4,3689.0,2.71074]
[1717800101611,0.86380099,3689.4,3689.0,2.71074]
[1717800102277,1.44990381,3689.4,3689.0,2.71074]
[1717800105507,0.86380099,3689.4,3689.0,2.71074]
[1717800116549,0.14280099,3689.4,3689.0,2.71074]
[1717800116713,0.721,3689.3,3689.0,2.71074]
[1717800117098,0.13995732,3689.2,3689.0,2.71074]
[1717800117413,0.721,3689.4,3689.0,2.71074]
[1717800117605,0.13993159,3689.1,3689.0,2.71074]
[1717800117821,0.721,3689.4,3689.0,2.71074]
[1717800118023,0.13993159,3689.1,3689.0,2.71074]
[1717800118222,0.721,3689.4,3689.0,2.71074]
[1717800118423,0.13994864,3689.1,3689.0,2.71074]
[1717800118627,2.3933,3689.5,3689.0,2.71074]
[1717800118628,2.97940282,3689.5,3689.0,2.71074]
[1717800118934,0.1399535,3689.1,3689.0,2.71074]
[1717800119103,0.721,3689.4,3689.0,2.71074]
[1717800119303,0.1399535,3689.1,3689.0,2.71074]
[1717800119503,0.721,3689.3,3689.0,2.71074]
[1717800119709,0.1399535,3689.1,3689.0,2.71074]
[1717800119914,0.721,3689.4,3689.0,2.71074]
[1717800120111,0.13996807,3689.1,3689.0,2.71074]
[1717800120316,0.721,3689.4,3689.0,2.71074]
[1717800120515,0.13996807,3689.1,3689.0,2.71074]
[1717800120702,0.721,3689.4,3689.0,2.71074]
[1717800120902,0.13996807,3689.1,3689.0,2.71074]
[1717800121124,0.721,3689.4,3689.0,2.71074]
[1717800121326,0.13996807,3689.1,3689.0,2.71074]
[1717800121527,0.721,3689.4,3689.0,2.71074]
[1717800121730,0.13996807,3689.1,3689.0,2.71074]
[1717800122205,0.721,3689.4,3689.0,2.71074]
[1717800122406,0.13996807,3689.1,3689.0,2.71074]
[1717800122641,0.721,3689.4,3689.0,2.71074]
[1717800122939,0.13996807,3689.1,3689.0,2.71074]
[1717800123104,0.58610671,3689.5,3689.0,2.71074]
[1717800123310,0.13996807,3689.1,3689.0,2.71074]
[1717800123511,0.58610671,3689.5,3689.0,2.71074]
[1717800123713,0.13996807,3689.1,3689.0,2.71074]
[1717800123913,0.58610671,3689.5,3689.0,2.71074]
[1717800124189,0.13996807,3689.1,3689.0,2.71074]
[1717800124326,0.721,3689.4,3689.0,2.71074]
[1717800124508,0.86101616,3689.4,3689.0,2.71074]
[1717800131459,0.721,3689.2,3689.0,2.71074]
[1717800131876,0.13872703,3689.1,3689.0,2.71074]
[1717800135355,0.85972703,3689.1,3689.0,2.71074]
[1717800137643,0.85972703,3689.1,3688.6,5.11711]
[1717800137851,0.721,3688.9,3688.6,5.11711]
[1717800138173,0.13398995,3688.8,3688.6,5.11711]
[1717800138493,0.13398995,3688.8,3688.6,2.71101]
[1717800138698,0.721,3688.7,3688.6,2.71101]
[1717800139695,0.721,3688.9,3688.6,2.71101]
[1717800140065,0.13401979,3688.8,3688.6,2.71101]
[1717800141794,0.721,3688.8,3688.6,2.71101]
[1717800142314,0.13402082,3688.7,3688.6,2.71101]
[1717800142666,0.721,3688.8,3688.6,2.71101]
[1717800142872,0.13399412,3688.7,3688.6,2.71101]
[1717800143196,0.721,3688.8,3688.6,2.71101]
[1717800143605,0.13399412,3688.7,3688.6,2.71101]
[1717800143901,0.721,3688.8,3688.6,2.71101]
[1717800144328,0.13400382,3688.7,3688.6,2.71101]
[1717800144910,0.721,3688.8,3688.6,2.71101]
[1717800145286,0.13400382,3688.7,3688.6,2.71101]
[1717800145605,0.721,3688.8,3688.6,2.71101]
[1717800145991,0.13400382,3688.7,3688.6,2.71101]
[1717800146311,0.721,3688.8,3688.6,2.71101]
[1717800146670,0.13400382,3688.7,3688.6,2.71101]
[1717800146872,0.721,3688.8,3688.6,2.71101]
[1717800147124,0.13400382,3688.7,3688.6,2.71101]
[1717800147472,0.721,3688.8,3688.6,2.71101]
[1717800147808,0.13401235,3688.7,3688.6,2.71101]
[1717800148176,0.13296568,3688.7,3688.6,2.71101]
[1717800148500,0.721,3688.8,3688.6,2.71101]
[1717800148820,0.13296568,3688.7,3688.6,2.71101]
[1717800149173,0.721,3688.8,3688.6,2.71101]
[1717800149608,0.13296568,3688.7,3688.6,2.71101]
[1717800149807,0.721,3688.8,3688.6,2.71101]
[1717800150109,0.13296568,3688.7,3688.6,2.71101]
[1717800150494,0.721,3688.8,3688.6,2.71101]
[1717800150802,0.13296568,3688.7,3688.6,2.71101]
[1717800150973,0.721,3688.8,3688.6,2.71101]
[1717800151176,0.58613828,3689.5,3688.7,2.3679]
[1717800151376,0.721,3689.1,3688.7,2.3679]
[1717800152023,0.1330392,3689.0,3688.7,2.3679]
[1717800154167,0.721,3688.9,3688.7,2.3679]
[1717800154573,0.13300715,3688.8,3688.7,2.3679]
[1717800157215,0.13300715,3688.8,3688.7,2.875791]
[1717800167459,0.721,3689.1,3688.7,2.875791]
[1717800167760,0.13300952,3688.8,3688.7,2.3679]
[1717800167955,0.721,3689.1,3688.7,2.3679]
[1717800168124,0.13300952,3688.8,3688.7,2.3679]
[1717800168321,0.721,3689.1,3688.7,2.3679]
[1717800168552,0.13302409,3688.8,3688.7,2.3679]
[1717800168711,0.721,3689.1,3688.7,2.3679]
[1717800168910,0.13303001,3688.8,3688.7,2.3679]
[1717800169106,0.721,3689.1,3688.7,2.3679]
[1717800169629,0.13306798,3689.0,3688.7,2.3679]
[1717800171061,0.13306798,3689.0,3688.8,2.7109]
[1717800172829,0.721,3689.1,3688.8,2.7109]
[1717800173032,0.13306311,3689.0,3688.8,2.7109]
[1717800173218,0.13306311,3689.0,3688.8,3.21878]
[1717800173553,0.58611085,3689.6,3689.4,2.7104]
[1717800173862,0.58611085,3689.6,3689.4,5.075]
[1717800174415,7.43,3689.7,3689.4,5.075]
[1717800175049,7.43,3689.7,3689.6,2.71032]
[1717800175237,2.4407,3690.4,3689.9,2.71004]
[1717800175445,0.721,3690.0,3689.9,2.71004]
[1717800176074,0.721,3690.0,3689.9,3.26004]
[1717800182122,0.84996921,3690.0,3689.9,3.26004]
[1717800187158,0.84996921,3690.0,3689.5,2.71036]
[1717800187363,2.4856,3689.9,3689.5,2.71036]
[1717800187659,0.721,3689.8,3689.5,2.71036]
[1717800187864,0.84941825,3689.8,3689.5,2.71036]
[1717800196336,0.84582194,3689.8,3689.5,2.71036]
[1717800196646,0.84941825,3689.8,3689.5,2.71036]
[1717800204055,0.12841825,3689.8,3689.5,2.71036]
[1717800204256,0.84941825,3689.8,3689.5,2.71036]
[1717800209695,0.12841825,3689.8,3689.5,2.71036]
[1717800211272,0.12841825,3689.8,3689.5,2.981396]
[1717800217303,0.1282332,3689.7,3689.5,2.981396]
[1717800217503,0.721,3690.0,3689.5,2.981396]
[1717800217664,0.721,3690.0,3689.5,2.71036]
[1717800218104,0.12826524,3689.9,3689.5,2.71036]
[1717800219711,2.4878,3689.7,3689.5,2.71036]
[1717800220076,0.12391535,3689.6,3689.5,2.71036]
[1717800220578,0.12391535,3689.6,3689.5,3.26036]